[Event "Sunway Sitges Chess Festival"]
[Date "2024.12.21"]
[White "Coles, Ruben"]
[Black "kiladze, Luka"]
[WhiteElo "2155"]
[BlackElo "2359"]
[Round "9.19"]
[Result "0-1"]
[TimeControl "40/5400+30:1800+30"]

1. e4 {[%clk 1:30:59]} 1... d6 {[%clk 1:30:53]} 2. d4 {[%clk 1:31:24]} 2... Nf6
{[%clk 1:31:19]} 3. Nc3 {[%clk 1:31:50]} 3... e5 {[%clk 1:31:45]} 4. Nf3 {[%clk
1:32:16]} 4... Nbd7 {[%clk 1:32:11]} 5. Bc4 {[%clk 1:32:41]} 5... Be7 {[%clk
1:32:37]} 6. O-O {[%clk 1:33:03]} 6... O-O {[%clk 1:33:04]} 7. a4 {[%clk
1:33:28]} 7... a5 {[%clk 1:33:30]} 8. Re1 {[%clk 1:30:54]} 8... c6 {[%clk
1:33:52]} 9. h3 {[%clk 1:28:04]} 9... h6 {[%clk 1:34:18]} 10. Be3 {[%clk
1:27:04]} 10... Re8 {[%clk 1:34:41]} 11. Qd2 {[%clk 1:21:37]} 11... exd4 {[%clk
1:35:02]} 12. Bxd4 {[%clk 1:13:31]} 12... Ne5 {[%clk 1:35:17]} 13. Be2 {[%clk
1:13:04]} 13... Qc7 {[%clk 1:30:42]} 14. Rad1 {[%clk 1:11:25]} 14... Be6 {[%clk
1:12:31]} 15. Be3 {[%clk 1:08:31]} 15... Nxf3+ {[%clk 1:08:17]} 16. Bxf3 {[%clk
1:08:50]} 16... Rad8 {[%clk 1:08:30]} 17. Bf4 {[%clk 1:04:56]} 17... Qb6 {[%clk
1:07:45]} 18. Qd4 {[%clk 0:58:03]} 18... Qb4 {[%clk 1:03:39]} 19. Ne2 {[%clk
0:52:34]} 19... d5 {[%clk 0:58:58]} 20. Bd2 {[%clk 0:51:08]} 20... Qxd4 {[%clk
0:52:53]} 21. Nxd4 {[%clk 0:51:33]} 21... dxe4 {[%clk 0:50:26]} 22. Nxe6 {[%clk
0:51:11]} 22... fxe6 {[%clk 0:50:51]} 23. Bxe4 {[%clk 0:50:29]} 23... Nxe4
{[%clk 0:50:29]} 24. Rxe4 {[%clk 0:50:53]} 24... Rd6 {[%clk 0:50:29]} 25. Kf1
{[%clk 0:50:15]} 25... Red8 {[%clk 0:49:49]} 26. Ke1 {[%clk 0:47:05]} 26... Bf6
{[%clk 0:45:58]} 27. c3 {[%clk 0:47:17]} 27... Bg5 {[%clk 0:40:04]} 28. Rd4
{[%clk 0:44:35]} 28... Rxd4 {[%clk 0:38:45]} 29. cxd4 {[%clk 0:44:58]} 29...
Rxd4 {[%clk 0:38:43]} 30. Bxa5 {[%clk 0:44:41]} 30... Rxa4 {[%clk 0:38:10]} 31.
Bc3 {[%clk 0:43:48]} 31... e5 {[%clk 0:32:31]} 32. Rd7 {[%clk 0:39:26]} 32... b5
{[%clk 0:31:09]} 33. Rc7 {[%clk 0:36:25]} 33... Rc4 {[%clk 0:31:11]} 34. Kd1
{[%clk 0:36:01]} 34... Bf6 {[%clk 0:30:11]} 35. Bd2 {[%clk 0:31:33]} 35... e4
{[%clk 0:28:20]} 36. b3 {[%clk 0:26:26]} 36... Rc5 {[%clk 0:28:12]} 37. Be3
{[%clk 0:22:26]} 37... Rc3 {[%clk 0:21:59]} 38. b4 {[%clk 0:22:04]} 38... Rd3+
{[%clk 0:22:19]} 39. Ke2 {[%clk 0:20:56]} 39... Rd6 {[%clk 0:22:28]} 40. f3
{[%clk 0:49:29]} 40... exf3+ {[%clk 0:47:31]} 41. Kxf3 {[%clk 0:49:38]} 41...
Re6 {[%clk 0:47:55]} 42. Bc5 {[%clk 0:48:12]} 42... Kh7 {[%clk 0:46:51]} 43. g4
{[%clk 0:42:13]} 43... Kg6 {[%clk 0:47:47]} 44. Rc8 {[%clk 0:40:48]} 44... Kg5
{[%clk 0:44:12]} 45. Kg3 {[%clk 0:37:15]} 45... Be5+ {[%clk 0:44:17]} 46. Kf3
{[%clk 0:37:34]} 46... Kh4 {[%clk 0:34:36]} 47. Kg2 {[%clk 0:36:54]} 47... Bf6
{[%clk 0:31:49]} 48. Rc7 {[%clk 0:33:26]} 48... Re2+ {[%clk 0:30:30]} 49. Bf2+
{[%clk 0:32:35]} 49... Kg5 {[%clk 0:30:03]} 50. Kf3 {[%clk 0:32:48]} 50... Re6
{[%clk 0:20:26]} 51. Bc5 {[%clk 0:32:36]} 51... Be5 {[%clk 0:19:36]} 52. Rc8
{[%clk 0:32:35]} 52... Bc3 {[%clk 0:17:23]} 53. Rc7 {[%clk 0:28:51]} 53... h5
{[%clk 0:10:21]} 54. Be7+ {[%clk 0:21:24]} 54... Kg6 {[%clk 0:10:32]} 55. Bc5
{[%clk 0:21:08]} 55... Kg5 {[%clk 0:08:43]} 56. Be7+ {[%clk 0:20:39]} 56... Bf6
{[%clk 0:09:06]} 57. Bc5 {[%clk 0:19:02]} 57... Kh4 {[%clk 0:08:37]} 58. gxh5
{[%clk 0:18:35]} 58... Kxh5 {[%clk 0:08:37]} 59. Kf4 {[%clk 0:17:14]} 59... Bc3
{[%clk 0:06:37]} 60. Kf5 {[%clk 0:13:28]} 60... Re5+ {[%clk 0:05:57]} 61. Kf4
{[%clk 0:13:53]} 61... g5+ {[%clk 0:06:23]} 62. Kf3 {[%clk 0:14:07]} 62... Rf5+
{[%clk 0:05:28]} 63. Ke3 {[%clk 0:11:25]} 63... Rf6 {[%clk 0:04:08]} 64. Rh7+
{[%clk 0:10:46]} 64... Kg6 {[%clk 0:04:34]} 65. Rc7 {[%clk 0:10:33]} 65... Be5
{[%clk 0:02:55]} 66. Rc8 {[%clk 0:08:13]} 66... Kf5 {[%clk 0:03:09]} 67. Kf3
{[%clk 0:07:46]} 67... Rh6 {[%clk 0:03:09]} 68. Rf8+ {[%clk 0:07:13]} 68... Ke6
{[%clk 0:03:08]} 69. Kg4 {[%clk 0:06:40]} 69... Rh4+ {[%clk 0:03:27]} 70. Kxg5
{[%clk 0:06:45]} 70... Rxh3 {[%clk 0:03:52]} 71. Re8+ {[%clk 0:07:09]} 71... Kd5
{[%clk 0:03:57]} 72. Rd8+ {[%clk 0:07:10]} 72... Kc4 {[%clk 0:04:16]} 73. Rc8
{[%clk 0:07:28]} 73... Bd4 {[%clk 0:01:46]} 74. Bf8 {[%clk 0:04:58]} 74... Rg3+
{[%clk 0:00:51]} 75. Kf5 {[%clk 0:02:23]} 75... Rf3+ {[%clk 0:01:19]} 76. Ke6
{[%clk 0:02:43]} 76... Rf6+ {[%clk 0:01:11]} 77. Kd7 {[%clk 0:02:53]} 77... Kd5
{[%clk 0:01:34]} 78. Be7 {[%clk 0:02:41]} 78... Rf7 {[%clk 0:01:04]} 79. Ke8
{[%clk 0:02:56]} 79... Rh7 {[%clk 0:01:12]} 80. Rd8+ {[%clk 0:02:05]} 80... Kc4
{[%clk 0:01:21]} 81. Rd6 {[%clk 0:02:02]} 81... c5 {[%clk 0:01:26]} 82. Rd7
{[%clk 0:02:04]} 82... cxb4 {[%clk 0:01:20]} 83. Rc7+ {[%clk 0:01:48]} 83... Kd3
{[%clk 0:00:41]} 84. Rb7 {[%clk 0:01:56]} 84... Bc5 {[%clk 0:00:37]} 85. Rd7+
{[%clk 0:02:17]} 85... Kc4 {[%clk 0:01:03]} 0-1

[Variant "Standard"]
[Site "Europe Echecs"]

[Event "Sunway Sitges Chess Festival"]
[Date "2024.12.21"]
[White "Xu, Minghui"]
[Black "Koh, Ming Yao Gavin"]
[WhiteElo "2405"]
[BlackElo "1995"]
[Round "9.20"]
[Result "1-0"]
[TimeControl "40/5400+30:1800+30"]

1. d4 {[%clk 1:30:29]} 1... Nf6 {[%clk 1:30:48]} 2. c4 {[%clk 1:30:42]} 2... e6
{[%clk 1:31:12]} 3. Nf3 {[%clk 1:30:41]} 3... d5 {[%clk 1:31:36]} 4. Nc3 {[%clk
1:30:52]} 4... Bb4 {[%clk 1:31:45]} 5. cxd5 {[%clk 1:30:46]} 5... exd5 {[%clk
1:32:09]} 6. Bf4 {[%clk 1:31:09]} 6... Ne4 {[%clk 1:31:17]} 7. Rc1 {[%clk
1:31:20]} 7... Nc6 {[%clk 1:30:47]} 8. Nd2 {[%clk 1:31:16]} 8... Nxc3 {[%clk
1:29:49]} 9. bxc3 {[%clk 1:31:39]} 9... Ba3 {[%clk 1:30:13]} 10. Rb1 {[%clk
1:31:39]} 10... g5 {[%clk 1:27:19]} 11. Bg3 {[%clk 1:28:08]} 11... f5 {[%clk
0:53:49]} 12. h4 {[%clk 0:53:26]} 12... f4 {[%clk 1:19:01]} 13. Bh2 {[%clk
0:39:33]} 13... Bd6 {[%clk 1:01:20]} 14. e4 {[%clk 0:46:02]} 14... fxe3 {[%clk
0:58:04]} 15. Qh5+ {[%clk 0:46:25]} 15... Kf8 {[%clk 0:57:10]} 16. fxe3 {[%clk
0:44:14]} 16... Bxh2 {[%clk 0:53:08]} 17. Rxh2 {[%clk 0:28:57]} 17... Qd6 {[%clk
0:43:48]} 18. g3 {[%clk 0:37:38]} 18... Qg6 {[%clk 0:33:18]} 19. Qxg5 {[%clk
0:31:19]} 19... Qxg5 {[%clk 0:39:04]} 20. hxg5 {[%clk 0:31:43]} 20... Kg7 {[%clk
0:38:42]} 21. Bd3 {[%clk 0:31:48]} 21... Nd8 {[%clk 0:32:57]} 22. Kf2 {[%clk
0:27:53]} 22... Nf7 {[%clk 0:32:51]} 23. Nf3 {[%clk 0:28:06]} 23... c6 {[%clk
0:30:16]} 24. g4 {[%clk 0:18:17]} 24... h6 {[%clk 0:25:49]} 25. g6 {[%clk
0:18:28]} 25... Nd6 {[%clk 0:26:36]} 26. Kg3 {[%clk 0:14:41]} 26... Bd7 {[%clk
0:26:04]} 27. Rbh1 {[%clk 0:13:42]} 27... Raf8 {[%clk 0:25:07]} 28. g5 {[%clk
0:08:25]} 28... Nf5+ {[%clk 0:19:01]} 29. Bxf5 {[%clk 0:08:48]} 29... Bxf5
{[%clk 0:19:24]} 30. Rxh6 {[%clk 0:08:05]} 30... Rxh6 {[%clk 0:18:18]} 31. gxh6+
{[%clk 0:08:25]} 31... Kxg6 {[%clk 0:18:39]} 32. h7 {[%clk 0:08:31]} 32... Kg7
{[%clk 0:18:05]} 33. Ng5 {[%clk 0:01:51]} 33... Rh8 {[%clk 0:09:02]} 34. Kf4
{[%clk 0:05:00]} 34... Kf6 {[%clk 0:09:12]} 35. Rh6+ {[%clk 0:02:27]} 35... Bg6
{[%clk 0:09:33]} 36. Rh2 {[%clk 0:01:56]} 36... b6 {[%clk 0:06:00]} 37. a3
{[%clk 0:02:17]} 37... Bd3 {[%clk 0:06:10]} 38. Rh6+ {[%clk 0:01:05]} 38... Bg6
{[%clk 0:06:32]} 39. Ne6 {[%clk 0:00:46]} 39... Kf7 {[%clk 0:06:30]} 40. Ke5
{[%clk 0:30:47]} 40... c5 {[%clk 0:33:47]} 41. Kxd5 {[%clk 0:28:11]} 41... cxd4
{[%clk 0:33:54]} 42. cxd4 {[%clk 0:27:47]} 42... Bf5 {[%clk 0:33:07]} 43. Ng5+
{[%clk 0:26:03]} 43... Kg7 {[%clk 0:33:18]} 44. Rd6 {[%clk 0:26:16]} 1-0

[Variant "Standard"]
[Site "Europe Echecs"]

[Event "Sunway Sitges Chess Festival"]
[Date "2024.12.21"]
[White "Marie, Maxime"]
[Black "Diaz Rosas, Julio Cesar"]
[WhiteElo "2196"]
[BlackElo "2401"]
[Round "9.21"]
[Result "1-0"]
[TimeControl "40/5400+30:1800+30"]

1. c4 {[%clk 1:30:24]} 1... e6 {[%clk 1:30:44]} 2. Nf3 {[%clk 1:30:44]} 2... d5
{[%clk 1:31:06]} 3. e3 {[%clk 1:31:03]} 3... Nf6 {[%clk 1:31:22]} 4. b3 {[%clk
1:31:16]} 4... b6 {[%clk 1:31:37]} 5. Bb2 {[%clk 1:25:45]} 5... Bb7 {[%clk
1:31:59]} 6. Nc3 {[%clk 1:25:58]} 6... Nbd7 {[%clk 1:32:21]} 7. Qc2 {[%clk
1:23:47]} 7... a6 {[%clk 1:32:19]} 8. Be2 {[%clk 1:20:33]} 8... Bd6 {[%clk
1:31:24]} 9. cxd5 {[%clk 1:20:04]} 9... exd5 {[%clk 1:31:44]} 10. h4 {[%clk
1:12:47]} 10... Qe7 {[%clk 1:16:46]} 11. h5 {[%clk 1:10:31]} 11... c5 {[%clk
1:16:09]} 12. d4 {[%clk 1:06:04]} 12... Rc8 {[%clk 1:12:06]} 13. dxc5 {[%clk
0:55:19]} 13... Nxc5 {[%clk 1:10:39]} 14. Qf5 {[%clk 0:52:48]} 14... Nce4 {[%clk
0:51:02]} 15. Nxe4 {[%clk 0:46:25]} 15... dxe4 {[%clk 0:49:51]} 16. Nd4 {[%clk
0:44:39]} 16... Rc5 {[%clk 0:34:11]} 17. Qh3 {[%clk 0:36:45]} 17... Bc8 {[%clk
0:34:33]} 18. Qh4 {[%clk 0:36:50]} 18... h6 {[%clk 0:34:28]} 19. O-O {[%clk
0:30:21]} 19... Nxh5 {[%clk 0:17:38]} 20. Qxe7+ {[%clk 0:29:41]} 20... Bxe7
{[%clk 0:17:25]} 21. Ba3 {[%clk 0:26:01]} 21... Rg5 {[%clk 0:17:25]} 22. Rac1
{[%clk 0:20:02]} 22... Bd7 {[%clk 0:17:11]} 23. Bxe7 {[%clk 0:17:01]} 23... Kxe7
{[%clk 0:17:38]} 24. Nc6+ {[%clk 0:16:22]} 24... Kf6 {[%clk 0:02:27]} 25. Rfd1
{[%clk 0:14:28]} 25... Be6 {[%clk 0:02:55]} 26. Rd6 {[%clk 0:12:26]} 26... Rc8
{[%clk 0:02:28]} 27. Rcd1 {[%clk 0:07:59]} 27... g6 {[%clk 0:01:58]} 28. Bxa6
{[%clk 0:07:33]} 28... Ra8 {[%clk 0:02:10]} 29. Nb4 {[%clk 0:07:04]} 29... b5
{[%clk 0:00:59]} 30. Bb7 {[%clk 0:06:35]} 30... Rb8 {[%clk 0:00:51]} 31. Bxe4
{[%clk 0:06:17]} 31... Kg7 {[%clk 0:01:14]} 32. Na6 {[%clk 0:05:09]} 32... Rc8
{[%clk 0:01:25]} 33. f4 {[%clk 0:03:03]} 33... Rg3 {[%clk 0:00:59]} 34. Kf2
{[%clk 0:03:26]} 34... Bg4 {[%clk 0:01:19]} 35. Rd8 {[%clk 0:02:41]} 35... Rc3
{[%clk 0:01:05]} 36. R1d3 {[%clk 0:02:55]} 36... Rc1 {[%clk 0:01:04]} 37. R3d4
{[%clk 0:03:01]} 37... Rh1 {[%clk 0:00:54]} 38. R8d5 {[%clk 0:03:13]} 38... f5
{[%clk 0:00:51]} 39. Rd7+ {[%clk 0:03:04]} 39... Kf8 {[%clk 0:01:18]} 40. Rd8+
{[%clk 0:32:30]} 40... Kf7 {[%clk 0:31:15]} 41. R4d7+ {[%clk 0:32:06]} 41... Kf6
{[%clk 0:31:38]} 42. Rf8+ {[%clk 0:32:23]} 1-0

[Variant "Standard"]
[Site "Europe Echecs"]

[Event "Sunway Sitges Chess Festival"]
[Date "2024.12.21"]
[White "Allahverdiyeva, Ayan"]
[Black "Shamatava, Nikolozi"]
[WhiteElo "2194"]
[BlackElo "2334"]
[Round "9.22"]
[Result "1-0"]
[TimeControl "40/5400+30:1800+30"]

1. e4 {[%clk 1:30:42]} 1... c6 {[%clk 1:30:53]} 2. d4 {[%clk 1:31:07]} 2... d5
{[%clk 1:31:17]} 3. e5 {[%clk 1:31:34]} 3... Bf5 {[%clk 1:31:39]} 4. h4 {[%clk
1:30:37]} 4... h5 {[%clk 1:31:48]} 5. Bd3 {[%clk 1:31:01]} 5... Bxd3 {[%clk
1:31:24]} 6. Qxd3 {[%clk 1:31:25]} 6... Qa5+ {[%clk 1:31:47]} 7. c3 {[%clk
1:31:02]} 7... e6 {[%clk 1:29:42]} 8. a4 {[%clk 1:28:11]} 8... Qa6 {[%clk
1:22:43]} 9. Qg3 {[%clk 1:24:42]} 9... Ne7 {[%clk 1:21:47]} 10. b4 {[%clk
1:25:07]} 10... Nf5 {[%clk 1:21:06]} 11. Qf3 {[%clk 1:25:21]} 11... Nd7 {[%clk
1:18:08]} 12. Ne2 {[%clk 1:25:07]} 12... O-O-O {[%clk 1:06:40]} 13. Ng3 {[%clk
1:19:44]} 13... Nxg3 {[%clk 1:05:56]} 14. Qxg3 {[%clk 1:20:03]} 14... f6 {[%clk
1:03:25]} 15. f4 {[%clk 1:20:29]} 15... fxe5 {[%clk 0:55:53]} 16. fxe5 {[%clk
1:18:38]} 16... Be7 {[%clk 0:56:17]} 17. Nd2 {[%clk 1:02:41]} 17... g5 {[%clk
0:56:03]} 18. hxg5 {[%clk 1:02:19]} 18... Rdg8 {[%clk 0:55:42]} 19. Nf1 {[%clk
0:48:40]} 19... Nf8 {[%clk 0:42:59]} 20. Ra2 {[%clk 0:27:43]} 20... Qc4 {[%clk
0:36:21]} 21. Rb2 {[%clk 0:28:10]} 21... h4 {[%clk 0:35:04]} 22. Qf3 {[%clk
0:26:38]} 22... Bxg5 {[%clk 0:31:43]} 23. Bxg5 {[%clk 0:26:42]} 23... Rxg5
{[%clk 0:32:08]} 24. Rxh4 {[%clk 0:16:10]} 24... Rf5 {[%clk 0:21:37]} 25. Nd2
{[%clk 0:15:23]} 25... Rxh4 {[%clk 0:13:21]} 26. Nxc4 {[%clk 0:15:46]} 26...
Rxf3 {[%clk 0:09:30]} 27. Nd6+ {[%clk 0:16:11]} 27... Kc7 {[%clk 0:09:56]} 28.
gxf3 {[%clk 0:16:38]} 28... Rh1+ {[%clk 0:10:21]} 29. Kd2 {[%clk 0:17:06]} 29...
Rh2+ {[%clk 0:10:32]} 30. Kc1 {[%clk 0:17:32]} 30... Rh1+ {[%clk 0:10:59]} 31.
Kc2 {[%clk 0:17:59]} 31... Ng6 {[%clk 0:11:15]} 32. Kd3 {[%clk 0:16:59]} 32...
Rd1+ {[%clk 0:06:15]} 33. Ke3 {[%clk 0:16:40]} 33... Rc1 {[%clk 0:04:18]} 34.
Rg2 {[%clk 0:15:34]} 34... Rxc3+ {[%clk 0:04:11]} 35. Kd2 {[%clk 0:15:47]} 35...
Rd3+ {[%clk 0:04:37]} 36. Kc2 {[%clk 0:14:43]} 36... Nf4 {[%clk 0:04:27]} 37.
Rg7+ {[%clk 0:12:13]} 37... Kd8 {[%clk 0:04:40]} 38. Nxb7+ {[%clk 0:11:54]}
38... Kc8 {[%clk 0:05:02]} 39. Nd6+ {[%clk 0:06:53]} 39... Kd8 {[%clk 0:04:55]}
40. Rxa7 {[%clk 0:33:38]} 40... Rxd4 {[%clk 0:35:14]} 41. Rb7 {[%clk 0:27:48]}
41... Rd3 {[%clk 0:33:51]} 42. Rf7 {[%clk 0:10:43]} 42... Rd4 {[%clk 0:31:03]}
43. a5 {[%clk 0:09:00]} 43... Rxb4 {[%clk 0:31:30]} 44. a6 {[%clk 0:09:28]}
44... Ra4 {[%clk 0:31:56]} 45. a7 {[%clk 0:09:54]} 45... Ng6 {[%clk 0:32:24]}
46. f4 {[%clk 0:09:45]} 46... c5 {[%clk 0:31:48]} 47. Rb7 {[%clk 0:09:20]} 47...
Nxf4 {[%clk 0:31:43]} 48. Rb8+ {[%clk 0:09:47]} 48... Kd7 {[%clk 0:32:07]} 49.
a8=Q {[%clk 0:10:12]} 49... Rxa8 {[%clk 0:32:32]} 50. Rxa8 {[%clk 0:10:40]}
50... Ng6 {[%clk 0:32:32]} 51. Ra7+ {[%clk 0:10:38]} 51... Kc6 {[%clk 0:32:50]}
52. Ra6+ {[%clk 0:11:00]} 52... Kd7 {[%clk 0:33:08]} 53. Nb7 {[%clk 0:10:15]}
1-0

[Variant "Standard"]
[Site "Europe Echecs"]

[Event "Sunway Sitges Chess Festival"]
[Date "2024.12.21"]
[White "Alinasab, Mobina"]
[Black "Lopez Del Alamo, Antonio"]
[WhiteElo "2330"]
[BlackElo "2194"]
[Round "9.23"]
[Result "1-0"]
[TimeControl "40/5400+30:1800+30"]

1. e4 {[%clk 1:30:48]} 1... c5 {[%clk 1:29:36]} 2. Nf3 {[%clk 1:30:27]} 2... Nc6
{[%clk 1:29:33]} 3. Bb5 {[%clk 1:28:51]} 3... g6 {[%clk 1:29:43]} 4. Bxc6 {[%clk
1:28:22]} 4... dxc6 {[%clk 1:28:48]} 5. d3 {[%clk 1:28:35]} 5... Bg7 {[%clk
1:28:53]} 6. Nc3 {[%clk 1:28:32]} 6... e5 {[%clk 1:28:00]} 7. Be3 {[%clk
1:26:51]} 7... b6 {[%clk 1:25:28]} 8. Qd2 {[%clk 1:25:05]} 8... h6 {[%clk
1:20:46]} 9. h3 {[%clk 1:21:09]} 9... Ne7 {[%clk 1:15:01]} 10. Ne2 {[%clk
1:18:56]} 10... f5 {[%clk 1:10:05]} 11. Qc3 {[%clk 1:16:37]} 11... Qc7 {[%clk
1:03:36]} 12. Bf4 {[%clk 1:06:50]} 12... Nd5 {[%clk 0:57:21]} 13. Bxe5 {[%clk
1:03:55]} 13... Nxc3 {[%clk 0:56:59]} 14. Bxc7 {[%clk 1:04:16]} 14... Nxe2
{[%clk 0:55:21]} 15. Kxe2 {[%clk 1:04:11]} 15... Bxb2 {[%clk 0:51:34]} 16. Rab1
{[%clk 1:01:29]} 16... Bf6 {[%clk 0:48:53]} 17. Be5 {[%clk 1:00:30]} 17... Kf7
{[%clk 0:47:16]} 18. Ke3 {[%clk 0:54:46]} 18... Re8 {[%clk 0:42:22]} 19. Bxf6
{[%clk 0:54:23]} 19... Kxf6 {[%clk 0:42:46]} 20. Nd2 {[%clk 0:52:03]} 20... Be6
{[%clk 0:37:55]} 21. a4 {[%clk 0:50:11]} 21... Rad8 {[%clk 0:36:42]} 22. Ra1
{[%clk 0:43:08]} 22... Kg7 {[%clk 0:26:50]} 23. f3 {[%clk 0:42:49]} 23... Rd7
{[%clk 0:23:54]} 24. Ra3 {[%clk 0:41:47]} 24... Red8 {[%clk 0:21:37]} 25. Rc3
{[%clk 0:37:29]} 25... Rd4 {[%clk 0:19:49]} 26. a5 {[%clk 0:35:45]} 26... Ra4
{[%clk 0:19:15]} 27. axb6 {[%clk 0:35:51]} 27... axb6 {[%clk 0:19:37]} 28. Rb1
{[%clk 0:32:36]} 28... Ra6 {[%clk 0:19:34]} 29. Nc4 {[%clk 0:23:01]} 29... Bxc4
{[%clk 0:19:34]} 30. Rxc4 {[%clk 0:23:23]} 30... Kf6 {[%clk 0:18:50]} 31. Rc3
{[%clk 0:17:50]} 31... Ke5 {[%clk 0:14:08]} 32. f4+ {[%clk 0:13:23]} 32... Kd6
{[%clk 0:14:14]} 33. g4 {[%clk 0:10:35]} 33... Ke6 {[%clk 0:10:27]} 34. Rcb3
{[%clk 0:08:27]} 34... Rb8 {[%clk 0:08:29]} 35. Rg1 {[%clk 0:06:38]} 35... Kf6
{[%clk 0:06:31]} 36. gxf5 {[%clk 0:03:56]} 36... gxf5 {[%clk 0:06:55]} 37. e5+
{[%clk 0:04:24]} 37... Kf7 {[%clk 0:06:42]} 38. Rb2 {[%clk 0:03:07]} 38... Ra3
{[%clk 0:05:06]} 39. c3 {[%clk 0:00:35]} 39... Rxc3 {[%clk 0:02:11]} 40. Rbg2
{[%clk 0:31:02]} 40... Rd8 {[%clk 0:31:09]} 41. Rg7+ {[%clk 0:30:18]} 41... Ke6
{[%clk 0:25:49]} 42. R1g6+ {[%clk 0:29:49]} 42... Kd5 {[%clk 0:26:10]} 43. Rg8
{[%clk 0:29:39]} 43... Rd7 {[%clk 0:16:33]} 44. e6 {[%clk 0:29:10]} 44... Rxd3+
{[%clk 0:14:34]} 45. Kxd3 {[%clk 0:29:25]} 45... c4+ {[%clk 0:14:59]} 46. Kc3
{[%clk 0:29:17]} 46... Ra7 {[%clk 0:15:22]} 47. Rd8+ {[%clk 0:28:54]} 47... Kc5
{[%clk 0:15:40]} 48. Rd7 {[%clk 0:26:11]} 48... Ra2 {[%clk 0:15:41]} 49. e7
{[%clk 0:23:27]} 49... b5 {[%clk 0:13:15]} 50. Rxc6+ {[%clk 0:23:02]} 1-0

[Variant "Standard"]
[Site "Europe Echecs"]

[Event "Sunway Sitges Chess Festival"]
[Date "2024.12.21"]
[White "Savitha Shri B"]
[Black "Herman Gamazo, Isaac"]
[WhiteElo "2329"]
[BlackElo "2191"]
[Round "9.24"]
[Result "1-0"]
[TimeControl "40/5400+30:1800+30"]

1. e4 {[%clk 1:29:50]} 1... e5 {[%clk 1:30:46]} 2. Nf3 {[%clk 1:30:16]} 2... Nc6
{[%clk 1:30:55]} 3. Bc4 {[%clk 1:30:41]} 3... Bc5 {[%clk 1:30:47]} 4. c3 {[%clk
1:31:07]} 4... Nf6 {[%clk 1:31:04]} 5. d4 {[%clk 1:31:22]} 5... exd4 {[%clk
1:31:21]} 6. b4 {[%clk 1:31:49]} 6... Bb6 {[%clk 1:30:10]} 7. e5 {[%clk
1:31:48]} 7... d5 {[%clk 1:27:18]} 8. exf6 {[%clk 1:32:05]} 8... dxc4 {[%clk
1:27:41]} 9. Qe2+ {[%clk 1:32:25]} 9... Be6 {[%clk 1:27:47]} 10. fxg7 {[%clk
1:31:59]} 10... Rg8 {[%clk 1:27:41]} 11. b5 {[%clk 1:32:19]} 11... Na5 {[%clk
1:12:18]} 12. cxd4 {[%clk 1:32:29]} 12... Rxg7 {[%clk 1:04:02]} 13. Nc3 {[%clk
1:15:16]} 13... Bxd4 {[%clk 0:49:35]} 14. Bb2 {[%clk 1:13:43]} 14... c5 {[%clk
0:43:26]} 15. bxc6 {[%clk 1:00:47]} 15... Nxc6 {[%clk 0:43:13]} 16. O-O-O {[%clk
0:59:56]} 16... Rg4 {[%clk 0:27:35]} 17. h3 {[%clk 0:40:17]} 17... Rf4 {[%clk
0:27:35]} 18. Nxd4 {[%clk 0:32:19]} 18... Rxd4 {[%clk 0:25:14]} 19. Ne4 {[%clk
0:32:40]} 19... c3 {[%clk 0:12:32]} 20. Bxc3 {[%clk 0:26:05]} 20... Rc8 {[%clk
0:12:47]} 21. Kb2 {[%clk 0:15:24]} 21... Ke7 {[%clk 0:06:54]} 22. Ka1 {[%clk
0:08:59]} 22... Qb6 {[%clk 0:06:58]} 23. Rb1 {[%clk 0:04:15]} 23... Nb4 {[%clk
0:04:30]} 24. Rb2 {[%clk 0:03:43]} 24... Rdc4 {[%clk 0:01:12]} 25. Rhb1 {[%clk
0:03:20]} 25... a5 {[%clk 0:01:06]} 26. Bf6+ {[%clk 0:02:05]} 26... Kf8 {[%clk
0:00:40]} 27. Ng5 {[%clk 0:01:11]} 27... Rc2 {[%clk 0:00:33]} 28. Rxc2 {[%clk
0:00:33]} 28... Rxc2 {[%clk 0:00:48]} 29. Rxb4 {[%clk 0:01:01]} 29... Qc6 {[%clk
0:00:33]} 30. Qd3 {[%clk 0:00:39]} 30... Rxa2+ {[%clk 0:00:32]} 31. Kb1 {[%clk
0:01:09]} 31... Bd5 {[%clk 0:00:32]} 32. Rb2 {[%clk 0:00:36]} 32... Ra4 {[%clk
0:00:32]} 33. Bd4 {[%clk 0:00:32]} 33... Rc4 {[%clk 0:00:40]} 34. Be3 {[%clk
0:00:41]} 34... h6 {[%clk 0:00:48]} 35. Rb6 {[%clk 0:00:34]} 35... Qa4 {[%clk
0:00:44]} 36. Nh7+ {[%clk 0:00:35]} 36... Ke7 {[%clk 0:00:39]} 37. Nf6 {[%clk
0:00:35]} 37... Bc6 {[%clk 0:00:35]} 38. Ng8+ {[%clk 0:00:32]} 38... Ke8 {[%clk
0:00:36]} 39. Nf6+ {[%clk 0:00:52]} 39... Ke7 {[%clk 0:00:54]} 40. Ng8+ {[%clk
0:30:37]} 40... Ke8 {[%clk 0:31:15]} 41. Rb2 {[%clk 0:28:22]} 41... Bxg2 {[%clk
0:29:04]} 42. Bxh6 {[%clk 0:20:23]} 42... Rd4 {[%clk 0:12:21]} 43. Qb5+ {[%clk
0:16:54]} 43... Qxb5 {[%clk 0:09:25]} 44. Rxb5 {[%clk 0:17:22]} 44... a4 {[%clk
0:09:23]} 45. Be3 {[%clk 0:15:42]} 45... Rh4 {[%clk 0:06:37]} 46. Nf6+ {[%clk
0:14:53]} 46... Ke7 {[%clk 0:03:58]} 47. Nd5+ {[%clk 0:15:14]} 47... Kd6 {[%clk
0:03:45]} 48. Nf4 {[%clk 0:15:38]} 48... Be4+ {[%clk 0:02:32]} 49. Kb2 {[%clk
0:15:59]} 49... Rh8 {[%clk 0:02:46]} 50. Rb4 {[%clk 0:14:48]} 50... Bc6 {[%clk
0:02:49]} 51. Rd4+ {[%clk 0:15:12]} 51... Ke5 {[%clk 0:02:44]} 52. Nd3+ {[%clk
0:15:15]} 52... Ke6 {[%clk 0:01:45]} 53. h4 {[%clk 0:15:16]} 53... b5 {[%clk
0:01:16]} 54. h5 {[%clk 0:14:56]} 54... f6 {[%clk 0:00:48]} 55. h6 {[%clk
0:15:08]} 55... Rh7 {[%clk 0:00:41]} 56. Rd8 {[%clk 0:12:46]} 56... Kf5 {[%clk
0:00:35]} 57. Rd6 {[%clk 0:13:03]} 57... Bf3 {[%clk 0:00:40]} 58. Rb6 {[%clk
0:12:55]} 58... Be2 {[%clk 0:00:36]} 59. Nc5 {[%clk 0:11:36]} 59... Rh8 {[%clk
0:00:34]} 60. Nd7 {[%clk 0:11:47]} 60... Bc4 {[%clk 0:00:35]} 61. Rxf6+ {[%clk
0:12:08]} 61... Ke4 {[%clk 0:00:59]} 62. Rf4+ {[%clk 0:11:37]} 62... Kd5 {[%clk
0:00:26]} 1-0

[Variant "Standard"]
[Site "Europe Echecs"]